lending/lending_fUSD_20251022
["ID","MTS","AMOUNT","RATE_DAILY","PERIOD"]
[392079921,1761137481884,-1632.62,0.00047671,120]
[392079922,1761137481894,-1268.92,0.00047671,120]
[392079923,1761137481903,-1515.76,0.00047671,120]
[392079924,1761137481913,-500.0,0.00047671,120]
[392079925,1761137481923,-500.0,0.00047671,120]
[392079926,1761137481933,-1021.54,0.00047671,120]
[392079927,1761137481942,-500.0,0.00047671,120]
[392079928,1761137481952,-1901.62275489,0.000477,15]
[392079929,1761137481963,-638.7281434,0.00047794,2]
[392079930,1761137481973,-500.0,0.0004788,120]
[392079931,1761137481983,-356.65,0.000479,30]
[392079932,1761137481993,-251.23,0.000479,120]
[392079933,1761137482003,-166.47,0.000479,120]
[392079934,1761137482013,-1999.0,0.00047934,120]
[392079935,1761137482024,-683.25,0.00047945,120]
[392079936,1761137482034,-668.65,0.00047945,60]
[392079937,1761137482043,-280.58,0.00047945,120]
[392079938,1761137482053,-504.28,0.00047945,120]
[392079939,1761137482063,-500.0,0.00047945,120]
[392079940,1761137482076,-678.16,0.00047945,120]
[392079941,1761137482270,-953.82,0.00047945,120]
[392079942,1761137482281,-1131.8,0.00047945,120]
[392079943,1761137482291,-538.28,0.00047945,120]
[392079944,1761137482300,-500.0,0.00047945,120]
[392079945,1761137482309,-1212.18,0.00047945,120]
[392079946,1761137482319,-971.57,0.00047945,120]
[392079947,1761137482329,-500.0,0.00047945,120]
[392079948,1761137482338,-500.0,0.00047945,120]
[392079949,1761137482347,-506.07,0.00047945,120]
[392079950,1761137482357,-500.0,0.00047945,120]
[392079951,1761137482366,-500.0,0.00047945,120]
[392079952,1761137482376,-787.36,0.00047945,120]
[392079953,1761137482386,-654.91,0.00047945,120]
[392079954,1761137482396,-609.54,0.00047945,120]
[392079955,1761137482407,-1546.84,0.00047945,120]
[392079956,1761137482418,-512.22,0.00047945,120]
[392079957,1761137482427,-500.0,0.00047945,120]
[392079958,1761137482437,-584.83,0.00047945,120]
[392079959,1761137482446,-161.71314388,0.00047945,12]
[392079960,1761137482456,-507.94002294,0.00047945,120]
[392079961,1761137482466,-184.9135042,0.00047945,120]
[392079962,1761137482476,-537.03,0.00047945,120]
[392079963,1761137482485,-500.0,0.00047945,120]
[392079964,1761137482495,-1006.19,0.00047945,120]
[392079965,1761137482505,-500.0,0.00047945,120]
[392079966,1761137482515,-768.78,0.00047945,120]
[392079967,1761137482524,-515.05,0.00047945,120]
[392079968,1761137482534,-888.55,0.00047945,120]
[392079969,1761137482543,-1783.82,0.00047945,120]
[392079970,1761137482552,-1004.91,0.00047945,120]
[392079971,1761137482561,-902.56,0.00047945,120]
[392079972,1761137482570,-500.0,0.00047945,120]
[392079973,1761137482579,-797.64,0.00047945,120]
[392079974,1761137482589,-727.22,0.00047945,120]
[392079975,1761137482607,-500.0,0.00047945,120]
[392079976,1761137482618,-500.0,0.00047945,120]
[392079977,1761137482628,-596.43,0.00047945,30]
[392079978,1761137482638,-839.78,0.00047945,120]
[392079979,1761137482648,-1567.44,0.00047945,120]
[392079980,1761137482658,-978.8,0.00047945,120]
[392079981,1761137482669,-550.93,0.00047945,120]
[392079982,1761137482679,-1200.44,0.00047945,120]
[392079983,1761137482688,-804.93,0.00047945,120]
[392079984,1761137482698,-739.04,0.00047945,120]
[392079985,1761137482707,-771.06,0.00047945,120]
[392079986,1761137482717,-794.03,0.00047945,120]
[392079987,1761137482727,-1137.8,0.00047945,120]
[392079988,1761137482736,-935.82,0.00047945,120]
[392079989,1761137482746,-835.83,0.00047945,120]
[392079990,1761137482756,-1199.67,0.00047945,120]
[392079991,1761137482765,-696.26,0.00047945,120]
[392079992,1761137482775,-652.36,0.00047945,120]
[392079993,1761137482788,-1077.51,0.00047945,120]
[392079994,1761137482798,-1098.31,0.00047945,120]
[392079995,1761137482808,-866.75,0.00047945,120]
[392079996,1761137482821,-500.0,0.00047945,120]
[392079997,1761137482832,-899.21,0.00047945,120]
[392079998,1761137482842,-683.69,0.00047945,120]
[392079999,1761137482854,-901.18,0.00047945,120]
[392080000,1761137482864,-1139.36,0.00047945,120]
[392080001,1761137482873,-978.62,0.00047945,120]
[392080002,1761137482883,-503.85,0.00047945,120]
[392080003,1761137482893,-1709.15,0.00047945,120]
[392080004,1761137482902,-1255.83,0.00047945,120]
[392080005,1761137482914,-598.97,0.00047945,120]
[392080006,1761137482925,-500.0,0.00047945,120]
[392080007,1761137482935,-500.0,0.00047945,120]
[392080008,1761137482944,-500.0,0.00047945,120]
[392080009,1761137482954,-913.64,0.00047945,2]
[392080010,1761137482963,-595.89114625,0.00047945,120]
[392080011,1761137482973,-788.16,0.00047945,120]
[392080012,1761137482983,-572.17,0.00047945,120]
[392080013,1761137482993,-1172.27,0.00047945,120]
[392080014,1761137483003,-822.33,0.00047945,120]
[392080015,1761137483013,-940.37,0.00047945,120]
[392080016,1761137483023,-1208.24,0.00047945,120]
[392080017,1761137483032,-647.81,0.00047945,120]
[392080018,1761137483042,-903.67,0.00047945,120]
[392080019,1761137483051,-701.38,0.00047945,120]
[392080020,1761137483061,-726.04,0.00047945,120]
[392080021,1761137483071,-1257.65,0.00047945,120]
[392080022,1761137483080,-1171.07,0.00047945,120]
[392080023,1761137483090,-966.41,0.00047945,120]
[392080024,1761137483100,-500.0,0.00047945,120]
[392080025,1761137483109,-838.16,0.00047945,120]
[392080026,1761137483119,-793.36,0.00047945,120]
[392080027,1761137483129,-650.24,0.00047945,120]
[392080028,1761137483139,-739.64,0.00047945,120]
[392080029,1761137483149,-1537.31,0.00047945,120]
[392080030,1761137483159,-500.0,0.00047945,120]
[392080031,1761137483170,-1957.66,0.00047945,120]
[392080032,1761137483180,-500.0,0.00047945,120]
[392080033,1761137483190,-728.44,0.00047945,120]
[392080034,1761137483200,-1020.65,0.00047945,120]
[392080035,1761137483209,-500.0,0.00047945,120]
[392080036,1761137483220,-500.0,0.00047945,120]
[392080037,1761137483229,-500.0,0.00047945,120]
[392080038,1761137483239,-1283.72,0.00047945,120]
[392080039,1761137483249,-507.24,0.00047945,120]
[392080040,1761137483259,-1791.81,0.00047945,120]
[392080041,1761137483268,-516.69,0.00047945,120]
[392080042,1761137483278,-774.46,0.00047945,120]
[392080043,1761137483288,-1704.96,0.00047945,120]
[392080044,1761137483298,-684.88,0.00047945,120]
[392080045,1761137483309,-903.57,0.00047945,120]
[392080046,1761137483319,-500.08,0.00047945,120]
[392080047,1761137483328,-1123.28,0.00047945,120]
[392080048,1761137483339,-976.02,0.00047945,120]
[392080049,1761137483349,-791.42,0.00047945,120]
[392080050,1761137483359,-1380.66,0.00047945,120]
[392080051,1761137483369,-500.0,0.00047945,120]
[392080052,1761137483379,-777.97,0.00047945,120]
[392080053,1761137483389,-1069.18,0.00047945,120]
[392080054,1761137483399,-550.13,0.00047945,120]
[392080055,1761137483409,-657.62,0.00047945,120]
[392080056,1761137483419,-741.11,0.00047945,120]
[392080057,1761137483429,-546.69,0.00047945,120]
[392080058,1761137483439,-868.99,0.00047945,120]
[392080059,1761137483449,-749.46,0.00047945,120]
[392080060,1761137483459,-1632.62,0.00047945,120]
[392080061,1761137483468,-1268.92,0.00047945,120]
[392080062,1761137483479,-1515.76,0.00047945,120]
[392080063,1761137483489,-500.0,0.00047945,120]
[392080064,1761137483500,-500.0,0.00047945,120]
[392080065,1761137483510,-1021.54,0.00047945,120]
[392080066,1761137483521,-500.0,0.00047945,120]
[392080067,1761137483531,-733.4604765,0.00048,120]
[392080068,1761137483541,-2248.9,0.00048,14]
[392080069,1761137483551,-95927.33740815,0.00048,120]
[392080070,1761137483773,-1399.01588786,0.00048,120]
[392080071,1761137483796,-822.83,0.00044383,120]
[392080072,1761137483806,-76.57,0.00048,120]
[392080073,1761137483819,-1003.85954884,0.00048,120]
[392080074,1761137483985,-500.0,0.00043835,120]
[392080075,1761137483995,-315.27637336,0.00043835,120]
[392080076,1761137484004,-500.0,0.00044109,120]
[392080077,1761137484013,-500.0,0.00044383,120]
[392080078,1761137484023,-417.92362664,0.00044657,120]
[392080079,1761137484078,-404.90637336,0.00044657,120]
[392080080,1761137484087,-500.0,0.00044657,120]
[392080081,1761137484097,-179.69362664,0.00044931,120]
[392080082,1761137484108,-643.13637336,0.00044931,120]
[392080083,1761137484118,-500.0,0.00044931,120]
[392080084,1761137484127,-150.0,0.0004499,120]
[392080085,1761137484137,-822.83,0.00045205,120]
[392080086,1761137484146,-500.0,0.00045205,120]
[392080087,1761137484156,-822.83,0.00045479,120]
[392080088,1761137484166,-270.86881039,0.00045479,120]
[392080089,1761137484176,-822.83,0.00045753,120]
[392080090,1761137484185,-822.83,0.00046027,120]
[392080091,1761137484196,-822.83,0.00046301,120]
[392080092,1761137484206,-822.83,0.00046575,120]
[392080093,1761137484215,-822.83,0.00046849,120]
[392080094,1761137484226,-8312.37652374,0.00048,120]
[392080095,1761137484237,-1148.3381337,0.00048,120]
[392080096,1761137484248,-777.0756743,0.00048,120]
[392080097,1761137484259,-3314.75,0.00048,120]
[392080098,1761137484461,-286.55,0.0003984,2]
[392080099,1761137484471,-178.13648891,0.0003984,2]
[392080100,1761137484487,-13.19351109,0.0003984,2]
[392080101,1761137484500,-1421.72211889,0.00043725,2]
[392080102,1761137484510,-500.0,0.00043835,120]
[392080103,1761137484519,-500.0,0.00044109,120]
[392080104,1761137484536,-500.0,0.00044383,120]
[392080105,1761137484688,-500.0,0.00044657,120]
[392080106,1761137484699,-343.44037622,0.00044931,120]
[392080107,1761137484714,-156.55962378,0.00044931,120]
[392080108,1761137484725,-500.0,0.00045205,120]
[392080109,1761137484735,-355.8,0.00045479,120]
[392080110,1761137484746,-822.83,0.00047123,120]
[392080111,1761137484757,-822.83,0.00047397,120]
[392080112,1761137484767,-822.83,0.00047671,120]
[392080113,1761137484780,-822.83,0.00047945,120]
[392080114,1761137484792,-250846.39045824,0.00048,120]
[392080115,1761137484808,-637194.28636517,0.00048,120]
[392080116,1761137484818,-417.78101719,0.00048119,28]
[392080117,1761137484830,-668.65,0.00048219,60]
[392080118,1761137484839,-504.28,0.00048219,120]
[392080119,1761137484849,-500.0,0.00048219,120]
[392080120,1761137484860,-678.16,0.00048219,120]
[392080121,1761137484870,-953.82,0.00048219,120]
[392080122,1761137484880,-1131.8,0.00048219,120]
[392080123,1761137484890,-538.28,0.00048219,120]
[392080124,1761137484900,-500.0,0.00048219,120]
[392080125,1761137484909,-1212.18,0.00048219,120]
[392080126,1761137484920,-971.57,0.00048219,120]
[392080127,1761137484929,-500.0,0.00048219,120]
[392080128,1761137484939,-500.0,0.00048219,120]
[392080129,1761137484948,-506.07,0.00048219,120]
[392080130,1761137484957,-265.0,0.00048219,120]
[392080131,1761137484967,-500.0,0.00048219,120]
[392080132,1761137484977,-787.36,0.00048219,120]
[392080133,1761137484987,-654.91,0.00048219,120]
[392080134,1761137484997,-609.54,0.00048219,120]
[392080135,1761137485006,-1546.84,0.00048219,120]
[392080136,1761137485015,-512.22,0.00048219,120]
[392080137,1761137485025,-500.0,0.00048219,120]
[392080138,1761137485035,-584.83,0.00048219,120]
[392080139,1761137485044,-537.03,0.00048219,120]
[392080140,1761137485053,-500.0,0.00048219,120]
[392080141,1761137485063,-1006.19,0.00048219,120]
[392080142,1761137485073,-500.0,0.00048219,120]
[392080143,1761137485082,-768.78,0.00048219,120]
[392080144,1761137485091,-515.05,0.00048219,120]
[392080145,1761137485101,-888.55,0.00048219,120]
[392080146,1761137485110,-1783.82,0.00048219,120]
[392080147,1761137485120,-1004.91,0.00048219,120]
[392080148,1761137485129,-902.56,0.00048219,120]
[392080149,1761137485138,-500.0,0.00048219,120]
[392080150,1761137485148,-797.64,0.00048219,120]
[392080151,1761137485158,-727.22,0.00048219,120]
[392080152,1761137485167,-500.0,0.00048219,120]
[392080153,1761137485177,-500.0,0.00048219,120]
[392080154,1761137485187,-596.43,0.00048219,30]
[392080155,1761137485197,-839.78,0.00048219,120]
[392080156,1761137485207,-1567.44,0.00048219,120]
[392080157,1761137485216,-978.8,0.00048219,120]
[392080158,1761137485227,-550.93,0.00048219,120]
[392080159,1761137485236,-1200.44,0.00048219,120]
[392080160,1761137485246,-804.93,0.00048219,120]
[392080161,1761137485255,-739.04,0.00048219,120]
[392080162,1761137485266,-771.06,0.00048219,120]
[392080163,1761137485277,-794.03,0.00048219,120]
[392080164,1761137485287,-1137.8,0.00048219,120]
[392080165,1761137485296,-935.82,0.00048219,120]
[392080166,1761137485306,-835.83,0.00048219,120]
[392080167,1761137485315,-1199.67,0.00048219,120]
[392080168,1761137485325,-696.26,0.00048219,120]
[392080169,1761137485334,-652.36,0.00048219,120]
[392080170,1761137485344,-1077.51,0.00048219,120]
[392080171,1761137485354,-1098.31,0.00048219,120]
[392080172,1761137485364,-866.75,0.00048219,120]
[392080173,1761137485375,-500.0,0.00048219,120]
[392080174,1761137485385,-899.21,0.00048219,120]
[392080175,1761137485394,-683.69,0.00048219,120]
[392080176,1761137485404,-901.18,0.00048219,120]
[392080177,1761137485414,-1139.36,0.00048219,120]
[392080178,1761137485424,-978.62,0.00048219,120]
[392080179,1761137485434,-503.85,0.00048219,120]
[392080180,1761137485443,-1709.15,0.00048219,120]
[392080181,1761137485453,-1255.83,0.00048219,120]
[392080182,1761137485462,-598.97,0.00048219,120]
[392080183,1761137485472,-500.0,0.00048219,120]
[392080184,1761137485481,-500.0,0.00048219,120]
[392080185,1761137485490,-913.64,0.00048219,2]
[392080186,1761137485500,-788.16,0.00048219,120]
[392080187,1761137485509,-572.17,0.00048219,120]
[392080188,1761137485518,-1172.27,0.00048219,120]
[392080189,1761137485530,-822.33,0.00048219,120]
[392080190,1761137485540,-940.37,0.00048219,120]
[392080191,1761137485552,-1208.24,0.00048219,120]
[392080192,1761137485563,-647.81,0.00048219,120]
[392080193,1761137485574,-903.67,0.00048219,120]
[392080194,1761137485585,-701.38,0.00048219,120]
[392080195,1761137485595,-726.04,0.00048219,120]
[392080196,1761137485604,-1257.65,0.00048219,120]
[392080197,1761137485614,-1171.07,0.00048219,120]
[392080198,1761137485624,-966.41,0.00048219,120]
[392080199,1761137485633,-500.0,0.00048219,120]
[392080200,1761137485643,-838.16,0.00048219,120]
[392080201,1761137485653,-793.36,0.00048219,120]
[392080202,1761137485662,-650.24,0.00048219,120]
[392080203,1761137485672,-739.64,0.00048219,120]
[392080204,1761137485682,-1537.31,0.00048219,120]
[392080205,1761137485692,-500.0,0.00048219,120]
[392080206,1761137485703,-1957.66,0.00048219,120]
[392080207,1761137485712,-500.0,0.00048219,120]
[392080208,1761137485724,-728.44,0.00048219,120]
[392080209,1761137485734,-1020.65,0.00048219,120]
[392080210,1761137485743,-500.0,0.00048219,120]
[392080211,1761137485752,-500.0,0.00048219,120]
[392080212,1761137485762,-500.0,0.00048219,120]
[392080213,1761137485771,-1283.72,0.00048219,120]
[392080214,1761137485784,-507.24,0.00048219,120]
[392080215,1761137485793,-1791.81,0.00048219,120]
[392080216,1761137485803,-516.69,0.00048219,120]
[392080217,1761137485812,-774.46,0.00048219,120]
[392080218,1761137485822,-1704.96,0.00048219,120]
[392080219,1761137485831,-684.88,0.00048219,120]
[392080220,1761137485840,-903.57,0.00048219,120]
[392080221,1761137485850,-500.08,0.00048219,120]
[392080222,1761137485859,-1123.28,0.00048219,120]
[392080223,1761137485868,-976.02,0.00048219,120]
[392080224,1761137485877,-791.42,0.00048219,120]
[392080225,1761137485888,-1380.66,0.00048219,120]
[392080226,1761137485898,-500.0,0.00048219,120]
[392080227,1761137485907,-777.97,0.00048219,120]
[392080228,1761137485917,-1069.18,0.00048219,120]
[392080229,1761137485926,-550.13,0.00048219,120]
[392080230,1761137485935,-657.62,0.00048219,120]
[392080231,1761137485944,-741.11,0.00048219,120]
[392080232,1761137485954,-546.69,0.00048219,120]
[392080233,1761137485963,-868.99,0.00048219,120]
[392080234,1761137485973,-749.46,0.00048219,120]
[392080235,1761137485982,-1632.62,0.00048219,120]
[392080236,1761137485991,-1268.92,0.00048219,120]
[392080237,1761137486001,-1515.76,0.00048219,120]
[392080238,1761137486010,-500.0,0.00048219,120]
[392080239,1761137486019,-500.0,0.00048219,120]
[392080240,1761137486029,-1021.54,0.00048219,120]
[392080241,1761137486039,-500.0,0.00048219,120]
[392080242,1761137486048,-822.83,0.00048219,120]
[392080243,1761137486058,-7230.91,0.000483,14]
[392080244,1761137486067,-200.0,0.00048399,30]
[392080245,1761137486076,-1980.96774627,0.000484,2]
[392080246,1761137486087,-7012.6,0.000484,30]
[392080247,1761137486096,-166.16763505,0.00048438,14]
[392080248,1761137486105,-668.65,0.00048493,60]
[392080249,1761137486115,-504.28,0.00048493,120]
[392080250,1761137486124,-500.0,0.00048493,120]
[392080251,1761137486133,-678.16,0.00048493,120]
[392080252,1761137486143,-953.82,0.00048493,120]
[392080253,1761137486152,-1131.8,0.00048493,120]
[392080254,1761137486162,-538.28,0.00048493,120]
[392080255,1761137486171,-500.0,0.00048493,120]
[392080256,1761137486180,-1212.18,0.00048493,120]
[392080257,1761137486190,-971.57,0.00048493,120]
[392080258,1761137486200,-460.58635,0.00048493,120]
[392080259,1761137486210,-500.0,0.00048493,120]
[392080260,1761137486220,-506.07,0.00048493,120]
[392080261,1761137486230,-500.0,0.00048493,120]
[392080262,1761137486239,-787.36,0.00048493,120]
[392080263,1761137486248,-654.91,0.00048493,120]
[392080264,1761137486257,-609.54,0.00048493,120]
[392080265,1761137486267,-1546.84,0.00048493,120]
[392080266,1761137486276,-512.22,0.00048493,120]
[392080267,1761137486287,-465.44392325,0.00048493,120]
[392080268,1761137486296,-584.83,0.00048493,120]
[392080269,1761137486306,-537.03,0.00048493,120]
[392080270,1761137486316,-500.0,0.00048493,120]
[392080271,1761137486326,-1006.19,0.00048493,120]
[392080272,1761137486336,-500.0,0.00048493,120]
[392080273,1761137486345,-768.78,0.00048493,120]
[392080274,1761137486354,-515.05,0.00048493,120]
[392080275,1761137486364,-888.55,0.00048493,120]
[392080276,1761137486374,-1783.82,0.00048493,120]
[392080277,1761137486384,-1004.91,0.00048493,120]
[392080278,1761137486394,-902.56,0.00048493,120]
[392080279,1761137486404,-500.0,0.00048493,120]
[392080280,1761137486414,-797.64,0.00048493,120]
[392080281,1761137486424,-727.22,0.00048493,120]
[392080282,1761137486433,-500.0,0.00048493,120]
[392080283,1761137486443,-596.43,0.00048493,30]
[392080284,1761137486452,-839.78,0.00048493,120]
[392080285,1761137486461,-1567.44,0.00048493,120]
[392080286,1761137486471,-978.8,0.00048493,120]
[392080287,1761137486481,-550.93,0.00048493,120]
[392080288,1761137486491,-1200.44,0.00048493,120]
[392080289,1761137486502,-804.93,0.00048493,120]
[392080290,1761137486512,-739.04,0.00048493,120]
[392080291,1761137486524,-771.06,0.00048493,120]
[392080292,1761137486534,-794.03,0.00048493,120]
[392080293,1761137486545,-1137.8,0.00048493,120]
[392080294,1761137486555,-935.82,0.00048493,120]
[392080295,1761137486564,-835.83,0.00048493,120]
[392080296,1761137486574,-1199.67,0.00048493,120]
[392080297,1761137486584,-696.26,0.00048493,120]
[392080298,1761137486594,-652.36,0.00048493,120]
[392080299,1761137486604,-1077.51,0.00048493,120]
[392080300,1761137486615,-1098.31,0.00048493,120]
[392080301,1761137486624,-866.75,0.00048493,120]
[392080302,1761137486633,-500.0,0.00048493,120]
[392080303,1761137486644,-899.21,0.00048493,120]
[392080304,1761137486654,-683.69,0.00048493,120]
[392080305,1761137486665,-901.18,0.00048493,120]
[392080306,1761137486678,-1139.36,0.00048493,120]
[392080307,1761137486689,-978.62,0.00048493,120]
[392080308,1761137486699,-503.85,0.00048493,120]
[392080309,1761137486710,-1709.15,0.00048493,120]
[392080310,1761137486720,-1255.83,0.00048493,120]
[392080311,1761137486729,-598.97,0.00048493,120]
[392080312,1761137486739,-500.0,0.00048493,120]
[392080313,1761137486751,-591.78338163,0.00048493,120]
[392080314,1761137486760,-913.64,0.00048493,2]
[392080315,1761137486770,-788.16,0.00048493,120]
[392080316,1761137486783,-572.17,0.00048493,120]
[392080317,1761137486795,-1172.27,0.00048493,120]
[392080318,1761137486804,-822.33,0.00048493,120]
[392080319,1761137486816,-940.37,0.00048493,120]
[392080320,1761137486827,-1208.24,0.00048493,120]
[392080321,1761137486838,-647.81,0.00048493,120]
[392080322,1761137486848,-903.67,0.00048493,120]
[392080323,1761137486861,-701.38,0.00048493,120]
[392080324,1761137486871,-726.04,0.00048493,120]
[392080325,1761137486880,-1257.65,0.00048493,120]
[392080326,1761137486890,-1171.07,0.00048493,120]
[392080327,1761137487012,-966.41,0.00048493,120]
[392080328,1761137487024,-500.0,0.00048493,120]
[392080329,1761137487034,-838.16,0.00048493,120]
[392080330,1761137487045,-793.36,0.00048493,120]
[392080331,1761137487055,-650.24,0.00048493,120]
[392080332,1761137487064,-739.64,0.00048493,120]
[392080333,1761137487073,-1537.31,0.00048493,120]
[392080334,1761137487083,-500.0,0.00048493,120]
[392080335,1761137487092,-1957.66,0.00048493,120]
[392080336,1761137487102,-500.0,0.00048493,120]
[392080337,1761137487113,-728.44,0.00048493,120]
[392080338,1761137487124,-1020.65,0.00048493,120]
[392080339,1761137487135,-500.0,0.00048493,120]
[392080340,1761137487145,-500.0,0.00048493,120]
[392080341,1761137487155,-500.0,0.00048493,120]
[392080342,1761137487164,-1283.72,0.00048493,120]
[392080343,1761137487174,-507.24,0.00048493,120]
[392080344,1761137487183,-1791.81,0.00048493,120]
[392080345,1761137487193,-516.69,0.00048493,120]
[392080346,1761137487203,-774.46,0.00048493,120]
[392080347,1761137487212,-1704.96,0.00048493,120]
[392080348,1761137487222,-684.88,0.00048493,120]
[392080349,1761137487231,-903.57,0.00048493,120]
[392080350,1761137487241,-500.08,0.00048493,120]
[392080351,1761137487250,-1123.28,0.00048493,120]
[392080352,1761137487259,-976.02,0.00048493,120]
[392080353,1761137487269,-791.42,0.00048493,120]
[392080354,1761137487279,-1380.66,0.00048493,120]
[392080355,1761137487288,-500.0,0.00048493,120]
[392080356,1761137487298,-777.97,0.00048493,120]
[392080357,1761137487308,-1069.18,0.00048493,120]
[392080358,1761137487318,-550.13,0.00048493,120]
[392080359,1761137487328,-657.62,0.00048493,120]
[392080360,1761137487337,-741.11,0.00048493,120]
[392080361,1761137487347,-546.69,0.00048493,120]
[392080362,1761137487356,-868.99,0.00048493,120]
[392080363,1761137487366,-749.46,0.00048493,120]
[392080364,1761137487375,-1632.62,0.00048493,120]
[392080365,1761137487384,-1268.92,0.00048493,120]
[392080366,1761137487393,-1515.76,0.00048493,120]
[392080367,1761137487403,-500.0,0.00048493,120]
[392080368,1761137487412,-483.99815905,0.00048493,120]
[392080369,1761137487422,-1021.54,0.00048493,120]
[392080370,1761137487431,-500.0,0.00048493,120]
[392080371,1761137487440,-822.83,0.00048493,120]
[392080372,1761137487450,-1000000.0,0.000485,120]
[392080373,1761137487459,-801.2512199,0.00048537,2]
[392080374,1761137487469,-1664.20274298,0.00048628,120]
[392080375,1761137487478,-668.65,0.00048767,60]
[392080376,1761137487489,-504.28,0.00048767,120]
[392080377,1761137487503,-500.0,0.00048767,120]
[392080378,1761137487512,-678.16,0.00048767,120]
[392080379,1761137487521,-953.82,0.00048767,120]
[392080380,1761137487531,-1131.8,0.00048767,120]
[392080381,1761137487540,-538.28,0.00048767,120]
[392080382,1761137487549,-500.0,0.00048767,120]
[392080383,1761137487558,-1212.18,0.00048767,120]
[392080384,1761137487568,-971.57,0.00048767,120]
[392080385,1761137487578,-500.0,0.00048767,120]
[392080386,1761137487587,-506.07,0.00048767,120]
[392080387,1761137487597,-161.24,0.00048767,120]
[392080388,1761137487606,-787.36,0.00048767,120]
[392080389,1761137487619,-654.91,0.00048767,120]
[392080390,1761137487629,-609.54,0.00048767,120]
[392080391,1761137487639,-1546.84,0.00048767,120]
[392080392,1761137487649,-512.22,0.00048767,120]
[392080393,1761137487658,-584.83,0.00048767,120]
[392080394,1761137487667,-537.03,0.00048767,120]
[392080395,1761137487677,-500.0,0.00048767,120]
[392080396,1761137487686,-1006.19,0.00048767,120]
[392080397,1761137487696,-500.0,0.00048767,120]
[392080398,1761137487705,-768.78,0.00048767,120]
[392080399,1761137487715,-515.05,0.00048767,120]
[392080400,1761137487725,-888.55,0.00048767,120]
[392080401,1761137487734,-1783.82,0.00048767,120]
[392080402,1761137487744,-1004.91,0.00048767,120]
[392080403,1761137487755,-902.56,0.00048767,120]
[392080404,1761137487765,-363.22830125,0.00048767,120]
[392080405,1761137487777,-797.64,0.00048767,120]
[392080406,1761137487790,-727.22,0.00048767,120]
[392080407,1761137487801,-500.0,0.00048767,120]
[392080408,1761137487811,-596.43,0.00048767,30]
[392080409,1761137487820,-839.78,0.00048767,120]
[392080410,1761137487830,-1567.44,0.00048767,120]
[392080411,1761137487839,-978.8,0.00048767,120]
[392080412,1761137487849,-550.93,0.00048767,120]
[392080413,1761137487859,-1200.44,0.00048767,120]
[392080414,1761137487868,-804.93,0.00048767,120]
[392080415,1761137487877,-739.04,0.00048767,120]
[392080416,1761137487888,-771.06,0.00048767,120]
[392080417,1761137487898,-794.03,0.00048767,120]
[392080418,1761137487907,-1137.8,0.00048767,120]
[392080419,1761137487917,-935.82,0.00048767,120]
[392080420,1761137487926,-835.83,0.00048767,120]